bitfinex/quotes_ETHUSD_20241231
["timestamp","ask_amount","ask_price","bid_price","bid_amount"]
[1735635024902,3.0,3394.5,3393.5,8.82]
[1735635025056,2.85297453,3394.3,3393.5,8.82]
[1735635025401,2.35697,3394.2,3393.5,8.82]
[1735635025599,2.35697,3394.2,3393.5,10.352]
[1735635025931,2.85297453,3394.3,3393.5,8.82]
[1735635026099,0.7959,3394.2,3393.5,8.82]
[1735635026295,2.35708,3394.1,3393.5,8.82]
[1735635027018,2.85297453,3394.3,3393.5,8.82]
[1735635027179,2.35705,3394.1,3393.6,8.82]
[1735635027775,5.35664,3394.7,3393.7,9.37]
[1735635027982,2.35664,3394.7,3393.7,9.37]
[1735635028291,0.7959,3393.7,3393.6,6.5]
[1735635028471,3.64887453,3393.7,3393.6,6.5]
[1735635028675,5.21027453,3393.7,3393.6,6.5]
[1735635029005,2.3573,3393.7,3392.7,6.5]
[1735635029202,2.3573,3393.7,3392.9,0.55]
[1735635031108,3.0,3393.8,3392.9,0.55]
[1735635031274,2.35752,3393.4,3392.7,6.5]
[1735635031481,2.35761,3393.3,3392.7,6.5]
[1735635031801,6.15335,3393.5,3392.7,6.5]
[1735635032007,6.15335,3393.5,3392.8,1.532]
[1735635032363,0.7959,3393.9,3392.9,9.37]
[1735635032567,5.3573,3393.8,3393.0,8.82]
[1735635032866,2.35738,3393.6,3393.0,10.5602]
[1735635033067,5.85297453,3393.8,3393.0,8.82]
[1735635033307,2.35772,3393.1,3392.9,6.5]
[1735635033611,2.35779,3393.0,3392.9,6.5]
[1735635034013,2.35779,3393.0,3392.2,9.37]
[1735635034195,0.7959,3393.3,3392.2,9.37]
[1735635034196,3.7959,3393.3,3392.3,1.587]
[1735635034502,2.35787,3392.9,3392.3,1.587]
[1735635034706,2.35773,3393.1,3392.3,1.587]
[1735635034903,2.35779,3393.0,3392.3,1.587]
[1735635035113,2.35779,3393.0,3392.3,8.087]
[1735635035314,2.35779,3393.0,3392.4,1.7457]
[1735635035471,0.7959,3393.3,3392.5,0.55]
[1735635036208,3.1535,3393.3,3392.5,7.05]
[1735635036367,3.792,3393.6,3392.5,7.05]
[1735635036569,2.35746,3393.5,3392.5,7.05]
[1735635036787,2.35752,3393.4,3392.7,0.55]
[1735635037014,0.792,3393.6,3392.6,1.115384]
[1735635037015,2.35775,3393.1,3392.6,1.115384]
[1735635037534,2.85297453,3393.4,3392.5,6.5]
[1735635037535,3.0,3393.3,3392.5,6.5]
[1735635037736,2.35788,3392.9,3392.5,6.5]
[1735635038036,2.35788,3392.9,3392.4,1.7457]
[1735635039239,3.0,3393.3,3392.5,8.82]
[1735635039240,2.35779,3393.1,3392.5,8.82]
[1735635039540,2.35781,3393.0,3392.5,8.82]
[1735635039912,5.35765,3393.3,3392.6,1.05657]
[1735635040323,3.0,3393.3,3392.6,1.05657]
[1735635040513,2.35765,3393.2,3392.5,8.82]
[1735635040713,2.35776,3393.1,3392.5,8.82]
[1735635041037,3.792,3393.6,3392.6,0.55]
[1735635041511,2.35759,3393.3,3392.6,0.55]
[1735635041911,2.35766,3393.2,3392.6,0.55]
[1735635042125,2.85297453,3393.4,3392.7,8.82]
[1735635042314,2.35788,3392.9,3392.7,8.82]
[1735635043745,3.792,3393.2,3392.7,8.82]
[1735635043958,2.35772,3393.1,3392.7,8.82]
[1735635044158,2.35772,3393.1,3392.2,6.5]
[1735635044159,2.35757,3393.4,3392.4,0.55]
[1735635044451,2.35758,3393.3,3392.4,0.55]
[1735635044678,2.35758,3393.3,3392.6,0.55]
[1735635044831,2.35745,3393.5,3392.3,8.82]
[1735635044998,2.3579,3392.9,3392.4,8.82]
[1735635046055,2.35765,3393.2,3392.4,8.82]
[1735635046338,2.35781,3393.0,3392.4,8.82]
[1735635046503,6.14922,3393.3,3392.4,8.82]
[1735635046703,2.35789,3392.9,3392.4,8.82]
[1735635047101,3.0,3393.0,3392.4,8.82]
[1735635047459,7.04943945,3393.3,3391.9,6.5]
[1735635047460,2.3582,3392.5,3392.0,8.82]
[1735635047956,0.7916,3392.6,3392.1,8.82]
[1735635048166,2.35829,3392.3,3392.1,8.82]
[1735635048483,2.35829,3392.3,3391.5,6.8]
[1735635048484,2.35835,3392.2,3391.6,8.82]
[1735635048632,2.85297453,3392.2,3391.6,8.82]
[1735635048830,2.85297453,3392.2,3391.6,10.382]
[1735635049242,2.35865,3391.8,3391.5,0.3]
[1735635049440,2.3587,3391.7,3391.5,0.3]
[1735635050215,5.21173453,3391.6,3391.5,0.3]
[1735635050416,6.00333453,3391.6,3391.5,0.3]
[1735635050618,6.83952798,3391.6,3391.5,0.3]
[1735635052223,7.40549092,3391.6,3391.5,0.3]
[1735635053661,7.40549092,3391.6,3391.5,0.32623457]
[1735635054164,10.40549092,3391.6,3391.5,0.32623457]
[1735635054360,9.56929747,3391.6,3391.5,0.3]
[1735635056231,9.56929747,3391.6,3390.9,0.1703841]
[1735635056232,3.15078,3391.0,3390.9,0.1703841]
[1735635056435,9.56971747,3391.0,3390.9,0.1703841]
[1735635056648,10.76259022,3391.0,3390.9,0.1703841]
[1735635057470,10.76259022,3391.0,3390.9,4.1e-06]
[1735635057858,4.21053747,3390.0,3389.1,8.82]
[1735635058026,2.35996,3389.9,3389.1,8.82]
[1735635058224,2.35996,3389.9,3389.2,0.02757382]
[1735635058844,2.36002,3389.8,3389.2,0.02757382]
[1735635059227,3.41893747,3389.6,3389.2,0.02757382]
[1735635059623,0.57789575,3389.8,3389.2,0.02757382]
[1735635059843,5.35995,3389.9,3389.2,0.02757382]
[1735635060809,3.0,3389.9,3389.2,0.02757382]
[1735635061609,3.0,3389.5,3389.2,0.02757382]
[1735635062351,2.36051,3389.1,3388.4,6.5]
[1735635062709,3.0,3389.1,3388.4,6.5]
[1735635062909,6.19355,3388.6,3388.5,0.02960783]
[1735635063254,2.3613,3388.0,3387.5,0.1703841]
[1735635063634,3.0,3387.9,3387.6,0.02889966]
[1735635064126,2.36142,3387.8,3387.6,0.02889966]
[1735635064345,3.87803575,3387.7,3387.6,0.02889966]
[1735635064646,3.87803575,3387.7,3387.5,0.1703841]
[1735635064908,0.7817,3386.5,3386.4,6.5]
[1735635065132,5.36241,3386.4,3386.2,1.20669288]
[1735635065252,6.85493275,3386.4,3386.2,1.20669288]
[1735635065904,6.85493275,3386.4,3384.9,8.82]
[1735635066080,5.36275,3385.9,3384.9,8.82]
[1735635066433,3.85493275,3386.4,3384.8,7.70669288]
[1735635066434,3.41893747,3385.2,3384.8,7.70669288]
[1735635066725,3.0,3385.1,3384.8,7.70669288]
[1735635066858,5.36333,3385.1,3384.8,7.70669288]
[1735635067201,2.36339,3385.0,3384.8,1.20669288]
[1735635067494,2.36366,3384.6,3383.7,6.5]
[1735635067697,3.0,3384.6,3383.7,6.5]
[1735635067855,5.36366,3384.6,3383.7,6.5]
[1735635068058,3.41893747,3385.5,3384.1,8.9903841]
[1735635068299,3.41893747,3385.5,3384.2,9.71903841]
[1735635068568,0.7817,3385.8,3384.3,8.82]
[1735635068679,3.41893747,3385.5,3384.3,8.82]
[1735635069092,3.0,3385.4,3384.3,8.82]
[1735635069292,3.0,3385.0,3384.2,6.5]
[1735635069714,3.0,3384.6,3384.2,6.5]
[1735635070082,3.0,3384.6,3384.1,0.1703841]
[1735635070408,3.41893747,3384.7,3384.1,0.1703841]
[1735635071382,3.0,3385.0,3384.1,0.1703841]
[1735635071585,5.78198747,3385.5,3384.1,1.06942251]
[1735635071788,2.36309,3385.4,3384.1,1.06942251]
[1735635071985,2.36318,3385.3,3384.1,1.06942251]
[1735635072295,3.0,3385.4,3384.2,8.82]
[1735635072503,3.81490224,3386.4,3384.7,8.82]
[1735635072504,5.78169747,3385.9,3384.7,8.82]
[1735635072810,3.90101955,3385.9,3384.5,8.82]
[1735635073022,5.78197747,3385.5,3384.4,8.82]
[1735635073170,3.41893747,3385.5,3384.5,8.82]
[1735635073379,2.36316,3385.3,3384.2,8.82]
[1735635073572,3.34189375,3385.4,3384.2,8.82]
[1735635073772,5.78223747,3385.1,3384.1,7.42732635]
[1735635073969,6.56393747,3385.1,3384.1,0.1703841]
[1735635074476,0.34189375,3385.4,3384.1,0.1703841]
[1735635074684,3.41893747,3385.1,3384.1,0.1703841]
[1735635075204,2.36337,3385.0,3384.1,0.1703841]
[1735635075408,0.57823075,3384.9,3384.1,0.1703841]
[1735635075717,0.34189375,3385.4,3384.1,2.5343141]
[1735635075903,3.34189375,3385.4,3384.2,0.03242189]
[1735635076246,3.34189375,3385.4,3384.2,2.39633189]
[1735635076617,3.41893747,3385.0,3384.2,0.03242189]
[1735635077947,3.41893747,3386.2,3385.1,2.36328]
[1735635078130,0.57814875,3386.1,3384.7,0.55]
[1735635078317,0.57814875,3386.1,3384.1,2.5343141]
[1735635078318,0.7616,3386.4,3385.2,0.03216208]
[1735635078517,0.7616,3386.4,3384.1,0.1703841]
[1735635078518,3.41893747,3386.6,3385.4,11.18308]
[1735635078721,3.41893747,3386.6,3385.5,0.55]
[1735635079025,5.78119747,3386.6,3385.5,0.55]
[1735635079346,3.41893747,3386.2,3385.6,0.03175698]
[1735635079554,3.99707722,3386.2,3385.4,8.82]
[1735635079751,2.36264,3386.1,3385.7,0.03175698]
[1735635080044,0.7616,3386.0,3385.7,0.03175698]
[1735635080249,3.0,3386.1,3385.4,8.82]
[1735635080466,3.41893747,3386.6,3385.8,0.03175698]
[1735635080606,3.41893747,3386.6,3385.5,8.82]
[1735635080811,3.0,3386.5,3385.9,0.03175698]
[1735635081035,3.0,3386.5,3385.3,8.82]
[1735635081255,3.0,3386.5,3385.4,2.91307]
[1735635081407,3.0,3386.5,3385.4,2.41670132]
[1735635081613,5.36232,3386.5,3385.4,2.41670132]
[1735635081816,2.36241,3386.4,3385.4,1.86670132]
[1735635082019,2.3626,3386.1,3385.4,0.03116113]
[1735635082346,2.36253,3386.2,3385.5,0.03116113]
[1735635082544,5.36233,3386.5,3385.2,2.36318]
[1735635082749,3.0,3386.5,3385.6,0.03116113]
[1735635082946,0.64189375,3386.4,3385.2,7.05]
[1735635083147,0.64189375,3386.4,3385.7,0.03116113]
[1735635083317,2.36212,3386.8,3385.4,0.55]
[1735635083516,3.7616,3386.9,3385.5,0.03116113]
[1735635083946,2.36218,3386.7,3385.5,0.03116113]
[1735635084130,3.0,3386.8,3385.5,0.03116113]
[1735635084350,2.36228,3386.6,3385.5,0.03116113]
[1735635084866,0.7616,3386.9,3385.7,0.55]
[1735635085021,3.41893747,3387.5,3385.9,8.82]
[1735635085218,3.23955575,3387.7,3385.9,8.82]
[1735635085219,2.36161,3387.6,3385.9,8.82]
[1735635085525,2.36161,3387.6,3385.7,7.05]
[1735635085526,3.41893747,3386.7,3386.0,0.03116113]
[1735635085754,2.94034775,3386.6,3385.8,8.82]
[1735635085949,3.0,3386.5,3386.1,0.03116113]
[1735635086268,5.36232,3386.5,3385.8,8.82]
[1735635086475,5.36232,3386.5,3386.2,0.03116113]
[1735635086618,3.93593552,3386.5,3385.8,8.82]
[1735635086821,3.93593552,3386.5,3386.3,0.03116113]
[1735635087018,3.93593552,3386.5,3385.8,8.82]
[1735635087316,3.93593552,3386.5,3386.4,0.03116113]
[1735635087426,3.93593552,3386.5,3385.8,8.82]
[1735635087627,3.12357,3387.0,3385.8,8.82]
[1735635087936,0.7616,3387.0,3385.9,0.03096258]
[1735635088151,5.36212,3386.8,3385.9,0.03096258]
[1735635088357,3.0,3386.9,3385.9,0.03096258]
[1735635088565,3.95424975,3386.9,3385.9,0.03096258]
[1735635088942,6.31629975,3386.9,3385.9,0.03096258]
[1735635089268,3.41893747,3386.7,3385.9,0.03096258]
[1735635089767,3.0,3386.6,3385.9,0.03096258]
[1735635090444,5.36225,3386.6,3385.9,0.03096258]
[1735635090641,3.0,3386.6,3385.9,0.03096258]
[1735635090828,3.97353072,3386.6,3385.9,0.03096258]
[1735635092251,3.0,3386.6,3385.9,0.03096258]
[1735635092643,0.7625,3386.5,3385.9,0.03096258]
[1735635092859,2.36254,3386.2,3386.0,0.17674615]
[1735635093227,2.36254,3386.2,3386.1,0.0294656]
[1735635093228,5.36254,3386.2,3386.1,0.0294656]
[1735635093433,2.36267,3386.0,3385.1,8.9423319]
[1735635093678,6.41893747,3385.9,3385.1,0.1223319]
[1735635093851,3.0,3385.4,3385.2,0.0294656]
[1735635094171,2.36322,3385.2,3385.1,0.1223319]
[1735635094484,3.24143575,3385.2,3385.1,0.1223319]
[1735635094836,3.24143575,3385.2,3384.2,0.21827103]
[1735635094837,2.36358,3384.7,3384.2,0.21827103]
[1735635095072,3.41893747,3384.6,3384.2,0.21827103]
[1735635095251,3.41893747,3384.6,3384.3,0.03011468]
[1735635095447,5.78258747,3384.6,3384.3,0.03011468]
[1735635095648,3.57825875,3384.5,3384.0,0.00295]
[1735635095848,3.57825875,3384.5,3384.4,0.03011468]
[1735635095849,5.94196875,3384.5,3384.4,0.03011468]
[1735635096179,2.36381,3384.4,3384.0,0.00295]
[1735635096335,3.0,3384.3,3384.0,0.00295]
[1735635096674,5.94201875,3384.5,3384.1,0.03011468]
[1735635096880,2.36386,3384.3,3384.1,0.03011468]
[1735635097062,2.36386,3384.3,3384.0,0.00295]
[1735635097265,5.36399,3384.1,3384.0,0.00295]
[1735635098688,5.36399,3384.1,3383.1,0.92388205]
[1735635098689,2.3645,3383.4,3383.1,0.92388205]
[1735635098835,5.36456,3383.3,3383.1,0.92388205]
[1735635099041,3.0,3383.3,3383.1,0.92388205]
[1735635099238,2.36462,3383.2,3383.1,0.92388205]
[1735635099457,6.12712,3383.2,3383.1,0.92388205]
[1735635100678,7.20257716,3383.2,3383.1,0.92388205]
[1735635101184,2.36519,3382.4,3381.7,0.1702495]
[1735635101477,2.36519,3382.4,3381.7,1.72839081]
[1735635101478,0.7625,3382.3,3381.7,1.72839081]
[1735635101782,3.7625,3382.3,3381.7,0.1702495]
[1735635102277,3.41893747,3381.8,3381.6,0.03226783]
[1735635102479,5.78454747,3381.8,3381.6,0.03226783]
[1735635102683,0.7625,3382.3,3381.6,0.03226783]
[1735635102879,3.41893747,3383.0,3381.6,2.39794783]
[1735635103081,0.7625,3383.1,3381.9,2.36552]
[1735635103287,3.41893747,3382.4,3381.8,8.82]
[1735635103441,3.41893747,3382.4,3381.7,0.27106044]
[1735635103646,3.0,3382.7,3381.8,8.82]
[1735635103847,3.0,3382.7,3381.8,8.85126566]
[1735635103848,5.365,3382.7,3381.8,8.85126566]
[1735635104043,5.365,3382.7,3381.9,1.56233283]
[1735635104271,0.7625,3383.4,3382.0,0.55]
[1735635104468,0.7625,3383.4,3382.0,9.37]
[1735635104658,3.12702,3383.4,3382.1,2.39664566]
[1735635104869,3.0,3383.3,3382.1,2.39664566]
[1735635105065,3.41893747,3383.8,3382.3,0.55]
[1735635105304,3.41893747,3383.8,3382.7,8.82]
[1735635105660,3.41893747,3383.8,3382.8,0.03126566]
[1735635105856,3.41893747,3383.8,3382.9,8.82]
[1735635106193,2.36397,3384.2,3382.9,8.82]
[1735635106194,3.41893747,3384.2,3382.9,8.82]
[1735635106354,1.73269562,3384.4,3383.1,2.36468]
[1735635106559,4.73269562,3384.4,3383.1,2.36468]
[1735635106757,4.73269562,3384.4,3383.2,2.3646]
[1735635106758,0.93609562,3384.4,3383.2,2.3646]
[1735635107058,3.29988562,3384.4,3383.2,6.53126566]
[1735635107503,3.41893747,3384.6,3383.4,8.82]
[1735635107654,2.36358,3384.7,3383.4,8.82]
[1735635107963,6.57906747,3384.8,3383.5,2.94565566]
[1735635108163,6.57906747,3384.8,3383.5,0.03126566]
[1735635108390,6.57906747,3384.8,3383.6,8.82]
[1735635108701,6.57906747,3384.8,3383.7,9.70512657]
[1735635108995,3.0,3384.7,3383.7,9.73639223]
[1735635109481,2.36328,3385.2,3383.9,8.82]
[1735635109482,4.21553747,3385.2,3383.9,8.82]
[1735635109687,6.57876747,3385.2,3383.9,8.82]
[1735635109888,0.65787675,3385.1,3383.9,10.03005622]
[1735635110057,0.65787675,3385.1,3384.0,8.85126566]
[1735635110261,2.36309,3385.4,3384.1,0.55]
[1735635110486,2.36317,3385.3,3384.1,2.91399]
[1735635110761,4.21553747,3385.6,3384.2,0.03126566]
[1735635111096,4.21553747,3385.6,3384.3,2.36382]
[1735635111316,3.0,3385.5,3384.3,2.36382]
[1735635111486,0.7966,3385.6,3384.6,8.82]
[1735635112396,2.36248,3386.3,3385.0,0.55]
[1735635112596,3.41893747,3386.4,3385.2,11.18321]
[1735635112795,3.84049122,3386.4,3385.2,11.18321]
[1735635113012,2.36248,3386.3,3385.2,8.82]
[1735635116031,2.36256,3386.2,3385.2,8.82]
[1735635116738,2.36256,3386.2,3385.0,0.55]
[1735635116739,0.7966,3386.6,3385.3,11.18315]
[1735635116882,0.65777275,3386.5,3385.4,2.36307]
[1735635117086,0.65777275,3386.5,3385.5,0.55]
[1735635117387,0.65777275,3386.5,3385.4,2.36307]
[1735635117388,3.41893747,3386.8,3385.6,2.36294]
[1735635117618,3.41893747,3386.8,3385.7,11.18287]
[1735635117884,6.41893747,3387.2,3386.0,8.82]
[1735635118107,0.40288144,3388.0,3385.9,2.36273]
[1735635118108,3.41893747,3387.6,3386.4,2.36235]
[1735635118317,0.65769475,3387.5,3386.8,8.82]
[1735635118480,5.78021747,3388.0,3386.8,11.1821]
[1735635118686,3.41893747,3388.0,3386.8,8.82]
[1735635118885,3.41893747,3388.0,3387.2,8.82]
[1735635119324,3.41893747,3388.4,3387.3,8.82]
[1735635119628,3.41893747,3388.4,3386.6,2.36219]
[1735635119629,3.41893747,3388.4,3387.4,8.82]
[1735635119829,0.65480775,3388.3,3387.4,8.82]
[1735635120050,3.65480775,3388.3,3387.4,8.82]
[1735635120204,2.36145,3387.8,3387.0,8.82]
[1735635120407,3.65480775,3388.3,3386.9,6.5]
[1735635120608,0.65480775,3388.3,3386.9,6.5]
[1735635120804,2.36192,3387.1,3386.9,6.5]
[1735635121030,2.3616,3387.6,3387.0,0.0288356]
[1735635121231,0.7682,3387.8,3385.6,6.5]
[1735635121232,2.36162,3387.5,3386.4,8.82]
[1735635121402,2.36196,3387.1,3385.8,8.82]
[1735635121608,2.36197,3387.1,3385.8,8.82]
[1735635121941,0.236197,3387.0,3385.9,2.36271]
[1735635122301,0.236197,3387.0,3385.8,8.82]
[1735635122498,2.36222,3386.7,3385.9,8.82]
[1735635122744,2.36226,3386.6,3385.9,8.82]
[1735635122943,2.36223,3386.7,3385.9,8.82]
[1735635123456,2.3624,3386.4,3385.9,8.82]
[1735635123947,2.36255,3386.2,3385.9,8.82]
[1735635124120,0.613075,3386.1,3385.9,8.82]
[1735635124442,0.613075,3386.1,3385.2,9.37]
[1735635124628,2.36246,3386.3,3385.3,8.82]
[1735635124831,4.65517081,3386.9,3384.8,8.82]
[1735635125029,2.36269,3386.0,3385.0,8.82]
[1735635125415,2.36254,3386.2,3385.0,8.82]
[1735635125742,3.0,3386.8,3385.2,11.18322]
[1735635125942,0.76551708,3386.7,3385.2,8.82]
[1735635126144,2.36253,3386.2,3385.2,8.82]
[1735635126446,0.76551708,3386.7,3385.1,8.82]
[1735635126671,2.36232,3386.5,3385.2,2.36322]
[1735635126879,3.0,3386.5,3385.1,8.82]
[1735635127170,2.36275,3385.9,3385.2,8.82]
[1735635127323,2.36256,3386.2,3385.2,8.82]
[1735635127540,0.61277671,3386.4,3385.3,0.55]
[1735635127840,0.61277671,3386.4,3385.2,8.82]
[1735635128031,0.76551708,3386.7,3385.3,8.82]
[1735635128235,0.76551708,3386.7,3385.4,0.55]
[1735635128447,2.36221,3386.7,3385.5,8.82]
[1735635128658,0.7682,3386.9,3385.5,8.82]
[1735635129167,0.7682,3386.9,3385.6,0.55]
[1735635129369,4.71907081,3387.2,3385.6,0.55]
[1735635129526,2.36198,3387.0,3385.8,0.55]
[1735635129726,2.36218,3386.7,3385.5,8.82]
[1735635129930,1.00810508,3386.9,3385.5,11.18295]
[1735635129931,3.37015508,3386.9,3385.5,11.18295]
[1735635130148,4.71907081,3387.2,3385.6,0.55]
[1735635130476,4.71907081,3387.2,3385.6,2.91294]
[1735635130682,2.36204,3386.9,3385.6,2.91294]
[1735635130855,3.0,3386.8,3385.7,1.173294]
[1735635131338,3.70811108,3386.9,3385.9,9.37]
[1735635131544,0.8321,3387.6,3386.1,8.82]
[1735635131742,2.36174,3387.4,3386.1,8.82]
[1735635131946,2.36152,3387.7,3386.2,0.55]
[1735635132371,2.36152,3387.7,3386.5,2.36231]
[1735635132544,2.36162,3387.6,3386.2,5.91248]
[1735635132751,0.8321,3388.0,3386.2,2.91248]
[1735635133269,2.36135,3387.9,3386.4,0.55]
[1735635133489,2.36135,3387.9,3386.3,8.82]
[1735635133490,0.76114187,3387.9,3386.8,11.1821]
[1735635133730,0.53099786,3388.2,3387.0,0.55]
[1735635133857,0.53099786,3388.2,3387.0,9.37]
[1735635134063,2.36142,3387.8,3387.0,15.32]
[1735635134256,2.36148,3387.7,3387.0,15.32]
[1735635134613,3.0,3388.1,3387.0,6.5]
[1735635134614,2.36141,3387.8,3387.0,6.5]
[1735635134783,2.36169,3387.4,3387.0,6.5]
[1735635134940,2.36169,3387.4,3386.2,8.82]
[1735635135136,0.536141,3387.7,3386.3,0.55]
[1735635135343,2.89214786,3388.2,3386.8,0.55]
[1735635135643,5.36127,3388.1,3386.8,0.55]
[1735635135849,2.36127,3388.1,3386.8,0.55]
[1735635136048,0.53099786,3388.2,3386.8,0.55]
[1735635136247,2.36138,3387.9,3386.5,6.5]
[1735635136462,3.0,3388.1,3386.5,6.5]
[1735635136667,3.0,3388.1,3386.5,15.31901756]
[1735635136668,2.36184,3387.2,3386.5,15.31901756]
[1735635137063,0.7564,3387.6,3386.5,15.31901756]
[1735635137064,3.7564,3387.6,3386.5,8.81901756]
[1735635137249,2.36169,3387.5,3386.5,8.81901756]
[1735635137455,3.0,3387.3,3386.5,8.81901756]
[1735635137655,2.36127,3388.0,3386.3,8.81901756]
[1735635137851,2.36151,3387.7,3386.3,8.81901756]
[1735635138186,2.36171,3387.4,3386.3,8.81901756]
[1735635138350,3.7564,3388.1,3386.3,8.81901756]
[1735635138682,2.36177,3387.3,3386.3,8.81901756]
[1735635138908,2.36183,3387.2,3386.3,8.81901756]
[1735635139110,0.7564,3387.4,3386.3,8.81901756]
[1735635139411,2.36211,3386.8,3385.6,8.81901756]
[1735635139577,2.36255,3386.2,3385.6,8.81901756]
[1735635139763,2.36255,3386.2,3385.5,6.5]
[1735635139764,5.36263,3386.1,3385.5,6.5]
[1735635140106,3.0,3386.1,3385.1,8.81901756]
[1735635140276,2.36267,3386.0,3385.1,8.81901756]
[1735635140482,2.3626,3386.1,3385.1,8.81901756]
[1735635140791,3.42914007,3386.3,3385.1,8.81901756]
[1735635140992,3.11848,3386.9,3385.1,8.81901756]
[1735635140993,3.42914007,3386.7,3385.1,8.81901756]
[1735635141167,3.0,3386.6,3385.4,2.36303]
[1735635141367,3.42914007,3386.7,3385.5,0.55]
[1735635141569,0.65477101,3386.7,3385.7,2.36286]
[1735635141762,0.65477101,3386.7,3385.6,8.81901756]
[1735635141763,3.42914007,3386.7,3385.6,8.81901756]
[1735635142405,5.79108007,3387.1,3385.7,9.36901756]
[1735635142907,2.36197,3387.0,3385.7,11.73188756]
[1735635143290,3.42914007,3386.7,3385.7,8.81901756]
[1735635143480,5.79132007,3386.7,3385.7,8.81901756]
[1735635143682,0.57913201,3386.6,3385.7,8.81901756]
[1735635144615,3.42914007,3387.1,3385.7,8.81901756]
[1735635144813,2.36211,3386.8,3385.7,8.81901756]
[1735635145308,3.0,3387.0,3385.7,8.81901756]
[1735635146110,2.3626,3386.1,3385.6,6.5]
[1735635146311,0.57917401,3386.0,3385.6,6.5]
[1735635146470,3.42914007,3386.3,3385.6,6.5]
[1735635146912,3.42914007,3386.3,3385.2,8.86321]
[1735635147113,3.0,3386.6,3385.4,0.55]
[1735635147474,2.36233,3386.5,3385.3,0.55]
[1735635147866,5.79132007,3386.7,3385.5,0.55]
[1735635148183,3.42914007,3387.1,3385.8,0.55]
[1735635148383,3.42914007,3387.1,3385.8,2.91275]
[1735635148593,3.42914007,3387.1,3385.9,8.81901756]
[1735635148808,3.42914007,3387.1,3385.2,3.0]
[1735635148809,2.36204,3387.0,3386.0,8.81901756]
[1735635148995,2.36211,3386.8,3386.0,8.81901756]
[1735635149515,0.7564,3386.7,3386.0,8.81901756]
[1735635149718,0.57911801,3386.9,3386.0,8.81901756]
[1735635150229,2.36218,3386.7,3386.0,8.81901756]
[1735635150413,2.36218,3386.7,3385.5,5.36301]
[1735635150598,0.57911801,3386.9,3385.6,4.98109276]
[1735635150989,0.57911801,3386.9,3385.6,9.11820276]
[1735635151314,2.36235,3386.5,3385.6,6.5]
[1735635151712,3.42914007,3386.7,3385.6,6.5]
[1735635151913,3.0,3386.8,3385.8,0.55]
[1735635152092,5.36212,3386.8,3385.8,0.55]
[1735635152291,3.0,3386.8,3385.6,6.5]
[1735635152559,0.3579118,3386.7,3385.6,6.5]
[1735635152691,2.36211,3386.8,3385.6,6.5]
[1735635152892,0.57911801,3386.9,3385.7,0.55]
[1735635153108,3.42914007,3387.1,3386.1,2.36257]
[1735635153307,3.42914007,3387.1,3386.2,8.81901756]
[1735635153531,6.67013108,3387.1,3386.2,8.81901756]
[1735635153896,4.30823108,3387.1,3386.2,8.81901756]
[1735635154219,5.36173,3387.4,3386.3,2.36242]
[1735635154437,2.36173,3387.4,3386.3,2.36242]
[1735635154944,2.36146,3387.8,3386.7,2.36214]
[1735635155229,5.79020007,3388.3,3387.1,11.18090756]
[1735635155436,3.42914007,3388.3,3387.2,2.36177]
[1735635155735,3.42914007,3388.3,3386.7,8.81901756]
[1735635155893,2.36128,3388.0,3386.8,2.36211]
[1735635156096,2.36123,3388.1,3386.8,2.36211]
[1735635156408,0.63744259,3388.2,3387.2,2.91181]
[1735635156931,0.63744259,3388.2,3387.0,8.81901756]
[1735635156932,3.42914007,3388.3,3387.0,8.81901756]
[1735635157101,2.36117,3388.2,3387.3,6.5]
[1735635157308,3.42914007,3388.3,3387.3,6.5]
[1735635158006,0.58428587,3388.5,3387.5,2.36161]
[1735635158738,0.0225182,3388.9,3387.8,8.81901756]
[1735635159309,0.0225182,3388.9,3387.8,11.18038756]
[1735635159508,0.0225182,3388.9,3387.9,2.3613]
[1735635159710,0.0225182,3388.9,3388.0,8.81901756]
[1735635159921,0.0225182,3388.9,3388.0,9.93704932]
[1735635160126,0.0225182,3388.9,3388.1,8.81901756]
[1735635160421,0.0225182,3388.9,3388.1,11.18019756]
[1735635161024,0.0225182,3388.9,3388.1,17.68019756]
[1735635161225,0.0225182,3388.9,3388.2,2.36112]
[1735635161426,0.0225182,3388.9,3388.5,8.81901756]
[1735635162503,0.0225182,3388.9,3388.5,11.17992756]
[1735635162740,0.0225182,3388.9,3388.5,8.81901756]
[1735635164195,0.0225182,3388.9,3388.6,0.55]
[1735635164402,0.0225182,3388.9,3388.5,8.81901756]
[1735635164812,0.0225182,3388.9,3388.4,6.5]
[1735635164813,2.36085,3388.6,3388.4,6.5]
[1735635165143,5.36085,3388.6,3387.8,8.81901756]
[1735635165644,5.78964007,3389.1,3387.9,9.36901756]
[1735635165847,3.0,3389.0,3388.1,0.55]
[1735635166144,3.14675,3389.4,3388.3,0.55]
[1735635166145,2.36035,3389.4,3388.3,0.55]
[1735635166325,0.314675,3389.4,3388.3,1.59342825]
[1735635166915,3.314675,3389.4,3388.6,8.81901756]
[1735635167319,3.42914007,3389.9,3388.6,11.17985756]
[1735635167534,2.35978,3390.2,3389.0,8.81901756]
[1735635167698,2.35978,3390.2,3389.1,0.55]
[1735635167903,2.35986,3390.1,3389.1,0.55]
[1735635168218,4.21554007,3390.4,3389.0,8.81901756]
[1735635168219,2.36002,3389.8,3389.0,8.81901756]
[1735635169039,3.0,3389.9,3389.0,8.81901756]
[1735635169214,5.35998,3389.9,3389.0,8.81901756]
[1735635169410,3.0,3389.9,3389.0,8.81901756]
[1735635170021,3.0,3389.9,3389.0,15.31901756]